[Event "*** Titled Tuesday 3|2 Blitz"]
[Site "Chess.com"]
[Date "2016.09.06"]
[Round "1"]
[White "ruifeng"]
[Black "Blitzstream"]
[Result "1-0"]
[WhiteElo "2333"]
[BlackElo "2548"]
[TimeControl "180+2"]
[EndTime "11:09:51 PDT"]
[Termination "ruifeng won by resignation"]

1. e4 {[%clk 0:02:56.8]} 1... d5 {[%clk 0:03:00.9]} 2. exd5 {[%clk 0:02:56.9]}
2... Qxd5 {[%clk 0:03:02.8]} 3. Nc3 {[%clk 0:02:58.2]} 3... Qa5 {[%clk
0:03:03.1]} 4. d4 {[%clk 0:02:59.2]} 4... Nf6 {[%clk 0:03:04.2]} 5. Bc4 {[%clk
0:02:56.7]} 5... Bg4 {[%clk 0:03:04.5]} 6. f3 {[%clk 0:02:56.8]} 6... Bf5 {[%clk
0:03:05.6]} 7. Ne2 {[%clk 0:02:57.7]} 7... e6 {[%clk 0:03:05.1]} 8. O-O {[%clk
0:02:45.4]} 8... c6 {[%clk 0:03:05.2]} 9. Ng3 {[%clk 0:02:45.9]} 9... Bg6 {[%clk
0:03:05.5]} 10. f4 {[%clk 0:02:44.2]} 10... Be7 {[%clk 0:02:20.6]} 11. f5 {[%clk
0:02:43.3]} 11... exf5 {[%clk 0:02:22.5]} 12. Qe2 {[%clk 0:02:43.4]} 12... Kf8
{[%clk 0:01:53.9]} 13. Bd3 {[%clk 0:02:28.2]} 13... Nbd7 {[%clk 0:01:36.1]} 14.
Nxf5 {[%clk 0:02:28.4]} 14... Bxf5 {[%clk 0:01:36.2]} 15. Rxf5 {[%clk
0:02:28.6]} 15... Qb6 {[%clk 0:01:33.2]} 16. Qf2 {[%clk 0:01:35.3]} 16... h5
{[%clk 0:01:22]} 17. b3 {[%clk 0:01:11.3]} 17... h4 {[%clk 0:01:18.7]} 18. h3
{[%clk 0:01:06.8]} 18... Rh5 {[%clk 0:01:14.9]} 19. Bg5 {[%clk 0:01:00.4]} 19...
g6 {[%clk 0:00:30.8]} 20. Rxf6 {[%clk 0:00:52.4]} 20... Nxf6 {[%clk 0:00:32.7]}
21. Bxf6 {[%clk 0:00:53.2]} 21... Bxf6 {[%clk 0:00:31.5]} 22. Qxf6 {[%clk
0:00:53.9]} 22... Qd8 {[%clk 0:00:27.8]} 23. Qf4 {[%clk 0:00:53.6]} 23... Kg8
{[%clk 0:00:26.2]} 24. Rf1 {[%clk 0:00:53.8]} 24... Qd7 {[%clk 0:00:20.6]} 25.
Ne4 {[%clk 0:00:49.7]} 25... Qxd4+ {[%clk 0:00:21]} 26. Kh1 {[%clk 0:00:48.4]}
26... Rf5 {[%clk 0:00:22.4]} 27. Qc1 {[%clk 0:00:49.4]} 27... Rxf1+ {[%clk
0:00:23.1]} 28. Qxf1 {[%clk 0:00:49.8]} 28... Kg7 {[%clk 0:00:24.5]} 29. Qf4
{[%clk 0:00:43.5]} 29... Re8 {[%clk 0:00:20.8]} 30. a4 {[%clk 0:00:40.6]} 30...
Qa1+ {[%clk 0:00:21.8]} 31. Kh2 {[%clk 0:00:41.2]} 31... Qe5 {[%clk 0:00:23.7]}
32. Qxe5+ {[%clk 0:00:42.3]} 32... Rxe5 {[%clk 0:00:25.6]} 33. Kg1 {[%clk
0:00:43.4]} 33... f5 {[%clk 0:00:26.6]} 34. Nd2 {[%clk 0:00:44]} 34... Re1+
{[%clk 0:00:20.6]} 35. Kf2 {[%clk 0:00:44.5]} 35... Ra1 {[%clk 0:00:22.1]} 36.
Nf3 {[%clk 0:00:45.5]} 36... Kf6 {[%clk 0:00:23.5]} 37. Nxh4 {[%clk 0:00:46.2]}
37... a5 {[%clk 0:00:24.9]} 38. Nf3 {[%clk 0:00:44.8]} 38... Ke6 {[%clk
0:00:22.3]} 39. g3 {[%clk 0:00:44.7]} 39... Ra2 {[%clk 0:00:22.3]} 40. Ke3
{[%clk 0:00:45.5]} 40... Ra1 {[%clk 0:00:22]} 41. Kf4 {[%clk 0:00:45.2]} 41...
Kf6 {[%clk 0:00:22.5]} 42. h4 {[%clk 0:00:45.9]} 42... Rh1 {[%clk 0:00:23.3]}
43. Nd2 {[%clk 0:00:41.5]} 43... Rh2 {[%clk 0:00:23.5]} 44. Nc4 {[%clk
0:00:41.7]} 44... Rf2+ {[%clk 0:00:24.4]} 45. Ke3 {[%clk 0:00:42.6]} 45... Rh2
{[%clk 0:00:25.4]} 46. Nxa5 {[%clk 0:00:42]} 46... Rh3 {[%clk 0:00:26.7]} 47.
Kf4 {[%clk 0:00:42.3]} 47... Rh2 {[%clk 0:00:25.3]} 48. Nxb7 {[%clk 0:00:42.9]}
48... Rf2+ {[%clk 0:00:26.3]} 49. Ke3 {[%clk 0:00:44]} 49... Rg2 {[%clk
0:00:27.7]} 50. Kf3 {[%clk 0:00:44.6]} 50... Rd2 {[%clk 0:00:29.3]} 51. a5
{[%clk 0:00:44.8]} 51... Rd1 {[%clk 0:00:28]} 52. a6 {[%clk 0:00:45.8]} 52...
Ra1 {[%clk 0:00:29.4]} 53. Nd8 {[%clk 0:00:46.4]} 53... c5 {[%clk 0:00:30.4]}
54. Nc6 {[%clk 0:00:47.4]} 54... Ke6 {[%clk 0:00:31.6]} 55. Kf4 {[%clk
0:00:38.8]} 55... Kd6 {[%clk 0:00:32.9]} 56. Nd8 {[%clk 0:00:39.3]} 56... Ke7
{[%clk 0:00:34.1]} 57. Nb7 {[%clk 0:00:39.4]} 57... Kf6 {[%clk 0:00:33.1]} 58.
Nxc5 {[%clk 0:00:39.5]} 58... Ra5 {[%clk 0:00:34.7]} 59. b4 {[%clk 0:00:39.8]}
59... Ra1 {[%clk 0:00:35.4]} 60. b5 {[%clk 0:00:40.6]} 60... Ra5 {[%clk
0:00:35.9]} 61. Nb3 {[%clk 0:00:35.7]} 61... Ra4+ {[%clk 0:00:37.3]} 62. Kf3
{[%clk 0:00:36.2]} 62... Ke7 {[%clk 0:00:36.2]} 63. b6 {[%clk 0:00:36.9]} 63...
Kd6 {[%clk 0:00:37.8]} 64. b7 {[%clk 0:00:36.1]} 64... Kc7 {[%clk 0:00:39.2]}
65. Nc5 {[%clk 0:00:36.8]} 65... Ra1 {[%clk 0:00:40.2]} 66. Nd7 {[%clk
0:00:36.6]} 1-0

[Event "*** Titled Tuesday 3|2 Blitz"]
[Site "Chess.com"]
[Date "2016.09.06"]
[Round "1"]
[White "nihalsarin"]
[Black "Polemistis"]
[Result "1-0"]
[WhiteElo "2400"]
[BlackElo "1796"]
[TimeControl "180+2"]
[EndTime "11:09:53 PDT"]
[Termination "nihalsarin won by resignation"]

1. d4 {[%clk 0:03:01]} 1... Nf6 {[%clk 0:02:59.8]} 2. Nf3 {[%clk 0:03:02.1]}
2... e6 {[%clk 0:02:59.2]} 3. c4 {[%clk 0:03:03]} 3... Bb4+ {[%clk 0:02:58.9]}
4. Nbd2 {[%clk 0:03:02.3]} 4... b6 {[%clk 0:02:57.6]} 5. a3 {[%clk 0:03:03.4]}
5... Bxd2+ {[%clk 0:02:58.2]} 6. Qxd2 {[%clk 0:03:04.6]} 6... Bb7 {[%clk
0:03:00.1]} 7. e3 {[%clk 0:03:05.6]} 7... Ne4 {[%clk 0:03:01.3]} 8. Qc2 {[%clk
0:03:06.4]} 8... f5 {[%clk 0:03:02.3]} 9. Be2 {[%clk 0:03:07.5]} 9... d6 {[%clk
0:03:01.4]} 10. O-O {[%clk 0:03:07.6]} 10... O-O {[%clk 0:03:02.6]} 11. b4
{[%clk 0:03:08.1]} 11... Nd7 {[%clk 0:03:03.6]} 12. Bb2 {[%clk 0:03:09]} 12...
Qe7 {[%clk 0:03:04.5]} 13. d5 {[%clk 0:03:07.9]} 13... e5 {[%clk 0:02:40.4]} 14.
Ne1 {[%clk 0:03:07.6]} 14... g6 {[%clk 0:02:38.2]} 15. Nd3 {[%clk 0:03:01.5]}
15... Nef6 {[%clk 0:02:38.8]} 16. Rac1 {[%clk 0:02:59.8]} 16... e4 {[%clk
0:02:38.2]} 17. Nf4 {[%clk 0:02:59.3]} 17... c6 {[%clk 0:02:33.7]} 18. dxc6
{[%clk 0:02:57.5]} 18... Bxc6 {[%clk 0:02:34.6]} 19. Rfd1 {[%clk 0:02:58.1]}
19... Rfd8 {[%clk 0:02:31.4]} 20. Qb3 {[%clk 0:02:53.2]} 20... Kh8 {[%clk
0:02:23.6]} 21. Nd5 {[%clk 0:02:31.6]} 21... Bxd5 {[%clk 0:02:19.2]} 22. Rxd5
{[%clk 0:02:32.5]} 22... Kg8 {[%clk 0:02:09]} 23. c5 {[%clk 0:01:57.9]} 23...
Nxd5 {[%clk 0:01:43.7]} 24. Qxd5+ {[%clk 0:01:57.6]} 24... Qf7 {[%clk
0:01:39.9]} 25. Bc4 {[%clk 0:01:55.8]} 25... Qxd5 {[%clk 0:01:33.9]} 26. Bxd5+
{[%clk 0:01:56.7]} 26... Kf8 {[%clk 0:01:32.6]} 27. Bxa8 {[%clk 0:01:57.5]}
27... Rxa8 {[%clk 0:01:31.7]} 28. c6 {[%clk 0:00:54]} 28... Ne5 {[%clk
0:01:29.9]} 29. Bxe5 {[%clk 0:00:54.5]} 29... dxe5 {[%clk 0:01:31.2]} 30. Rd1
{[%clk 0:00:54.6]} 30... Rc8 {[%clk 0:00:57.2]} 31. b5 {[%clk 0:00:54.1]} 31...
Rc7 {[%clk 0:00:58.2]} 32. Rd5 {[%clk 0:00:51.8]} 32... Ke7 {[%clk 0:00:52.8]}
33. a4 {[%clk 0:00:30]} 33... Ke6 {[%clk 0:00:45.5]} 34. Rd8 {[%clk 0:00:31.1]}
34... Ke7 {[%clk 0:00:45.1]} 35. Rd2 {[%clk 0:00:31.1]} 35... Ke6 {[%clk
0:00:44.7]} 36. Kf1 {[%clk 0:00:32.1]} 36... g5 {[%clk 0:00:42.1]} 37. Ke2
{[%clk 0:00:32.9]} 37... f4 {[%clk 0:00:42.1]} 38. f3 {[%clk 0:00:33]} 38...
exf3+ {[%clk 0:00:42.2]} 39. gxf3 {[%clk 0:00:30.7]} 39... h5 {[%clk 0:00:35.9]}
40. Kd3 {[%clk 0:00:29.8]} 40... g4 {[%clk 0:00:23.8]} 41. Ke4 {[%clk
0:00:28.6]} 41... fxe3 {[%clk 0:00:22.9]} 42. Kxe3 {[%clk 0:00:28.7]} 42... gxf3
{[%clk 0:00:24.2]} 43. Kxf3 {[%clk 0:00:29.8]} 43... h4 {[%clk 0:00:22.4]} 44.
Ke4 {[%clk 0:00:28]} 44... Rf7 {[%clk 0:00:20.4]} 45. Ke3 {[%clk 0:00:28.8]}
45... Rc7 {[%clk 0:00:21]} 46. Rg2 {[%clk 0:00:28.9]} 46... Kf5 {[%clk
0:00:21.6]} 47. Rg8 {[%clk 0:00:29.6]} 47... Ke6 {[%clk 0:00:22.8]} 48. Rh8
{[%clk 0:00:30.4]} 48... Kd6 {[%clk 0:00:23.2]} 49. Rxh4 {[%clk 0:00:30.6]}
49... Kc5 {[%clk 0:00:24.3]} 50. Re4 {[%clk 0:00:31.8]} 50... Kd5 {[%clk
0:00:25.2]} 51. h4 {[%clk 0:00:32.7]} 51... Rh7 {[%clk 0:00:26]} 52. Rg4 {[%clk
0:00:33.7]} 52... Kd6 {[%clk 0:00:22]} 53. Kf3 {[%clk 0:00:33.8]} 53... Kd5
{[%clk 0:00:22.8]} 54. Rg8 {[%clk 0:00:33.5]} 54... Kd6 {[%clk 0:00:21.4]} 55.
Kg4 {[%clk 0:00:34]} 55... e4 {[%clk 0:00:22]} 56. h5 {[%clk 0:00:35.2]} 56...
e3 {[%clk 0:00:22.6]} 57. Re8 {[%clk 0:00:36.3]} 57... Re7 {[%clk 0:00:18.3]}
58. Rxe7 {[%clk 0:00:36.7]} 58... Kxe7 {[%clk 0:00:19.6]} 59. Kf3 {[%clk
0:00:38]} 1-0

[Event "*** Titled Tuesday 3|2 Blitz"]
[Site "Chess.com"]
[Date "2016.09.06"]
[Round "1"]
[White "wonderfultime"]
[Black "Pudor"]
[Result "1-0"]
[WhiteElo "2667"]
[BlackElo "2367"]
[TimeControl "180+2"]
[EndTime "11:10:42 PDT"]
[Termination "wonderfultime won by checkmate"]

1. d4 {[%clk 0:03:00.7]} 1... Nf6 {[%clk 0:03:00.4]} 2. c4 {[%clk 0:03:01.7]}
2... d6 {[%clk 0:03:01.2]} 3. Nf3 {[%clk 0:03:00.3]} 3... Nbd7 {[%clk
0:03:02.6]} 4. Nc3 {[%clk 0:02:57.4]} 4... e5 {[%clk 0:03:03.2]} 5. g3 {[%clk
0:02:55.4]} 5... g6 {[%clk 0:03:03.7]} 6. Bg2 {[%clk 0:02:56.8]} 6... Bg7 {[%clk
0:03:05.1]} 7. O-O {[%clk 0:02:58.4]} 7... O-O {[%clk 0:03:06.4]} 8. Qc2 {[%clk
0:03:00.1]} 8... exd4 {[%clk 0:03:05.7]} 9. Nxd4 {[%clk 0:03:01.1]} 9... Re8
{[%clk 0:03:07.4]} 10. Rd1 {[%clk 0:03:02.2]} 10... c6 {[%clk 0:03:06]} 11. b3
{[%clk 0:03:03.7]} 11... Qe7 {[%clk 0:03:06.3]} 12. Ba3 {[%clk 0:03:04]} 12...
Nc5 {[%clk 0:03:04]} 13. Rac1 {[%clk 0:03:05.1]} 13... a5 {[%clk 0:03:04.3]} 14.
h3 {[%clk 0:03:05.5]} 14... h5 {[%clk 0:02:56.6]} 15. Qd2 {[%clk 0:02:54.8]}
15... Kh7 {[%clk 0:02:52.2]} 16. e3 {[%clk 0:02:00.6]} 16... Bh6 {[%clk
0:02:46.3]} 17. Re1 {[%clk 0:01:52]} 17... Nce4 {[%clk 0:02:41.6]} 18. Nxe4
{[%clk 0:01:52.6]} 18... Nxe4 {[%clk 0:02:43.5]} 19. Qc2 {[%clk 0:01:51.3]}
19... Ng5 {[%clk 0:02:08.2]} 20. Kh2 {[%clk 0:01:44]} 20... h4 {[%clk
0:02:05.6]} 21. g4 {[%clk 0:01:41.4]} 21... c5 {[%clk 0:01:31.8]} 22. Nb5 {[%clk
0:01:37.5]} 22... f5 {[%clk 0:01:32.3]} 23. f4 {[%clk 0:01:33]} 23... Ne4 {[%clk
0:01:19.9]} 24. Bxe4 {[%clk 0:01:33.6]} 24... fxe4 {[%clk 0:01:18]} 25. Rcd1
{[%clk 0:01:34.2]} 25... d5 {[%clk 0:00:46.7]} 26. cxd5 {[%clk 0:01:28.6]} 26...
g5 {[%clk 0:00:46.2]} 27. d6 {[%clk 0:01:15.3]} 27... Qf7 {[%clk 0:00:40.2]} 28.
f5 {[%clk 0:01:10.7]} 28... Rd8 {[%clk 0:00:26.9]} 29. Bxc5 {[%clk 0:01:05.2]}
29... Bg7 {[%clk 0:00:24.9]} 30. Bd4 {[%clk 0:01:06.2]} 30... Bd7 {[%clk
0:00:21.6]} 31. Nc7 {[%clk 0:01:06.5]} 31... Rac8 {[%clk 0:00:22.1]} 32. Qxe4
{[%clk 0:01:07.6]} 32... Bc6 {[%clk 0:00:22.6]} 33. Qe6 {[%clk 0:01:08.5]} 33...
Rxc7 {[%clk 0:00:14.3]} 34. Bxg7 {[%clk 0:01:04.1]} 34... Qxe6 {[%clk
0:00:14.4]} 35. fxe6 {[%clk 0:01:03.8]} 35... Rxg7 {[%clk 0:00:15]} 36. e4
{[%clk 0:00:50.9]} 36... Rg6 {[%clk 0:00:12.6]} 37. e7 {[%clk 0:00:52]} 37...
Rdxd6 {[%clk 0:00:13.4]} 38. Rxd6 {[%clk 0:00:37.4]} 38... Rxd6 {[%clk
0:00:15.3]} 39. Rc1 {[%clk 0:00:39]} 39... Re6 {[%clk 0:00:16.4]} 40. Rc5 {[%clk
0:00:38.2]} 40... Rxe7 {[%clk 0:00:17.4]} 41. Rxg5 {[%clk 0:00:38.1]} 41... Rxe4
{[%clk 0:00:18.4]} 42. Rxa5 {[%clk 0:00:39.8]} 42... Re2+ {[%clk 0:00:18.4]} 43.
Kg1 {[%clk 0:00:41.3]} 43... Rg2+ {[%clk 0:00:19.6]} 44. Kf1 {[%clk 0:00:42.8]}
44... Kg6 {[%clk 0:00:20.5]} 45. Rh5 {[%clk 0:00:30.8]} 45... Rxa2 {[%clk
0:00:21.5]} 46. Rxh4 {[%clk 0:00:32.2]} 46... Rb2 {[%clk 0:00:23.2]} 47. Rh8
{[%clk 0:00:30.6]} 47... Rxb3 {[%clk 0:00:24.2]} 48. Kf2 {[%clk 0:00:32.2]}
48... Rb2+ {[%clk 0:00:25.2]} 49. Kg3 {[%clk 0:00:33.4]} 49... Rb3+ {[%clk
0:00:26.1]} 50. Kf4 {[%clk 0:00:30.5]} 50... Rb4+ {[%clk 0:00:27.5]} 51. Kg3
{[%clk 0:00:30.1]} 51... Rb3+ {[%clk 0:00:28.1]} 52. Kf4 {[%clk 0:00:31.6]}
52... Rb1 {[%clk 0:00:29.2]} 53. h4 {[%clk 0:00:32.5]} 53... Rf1+ {[%clk
0:00:30.2]} 54. Ke5 {[%clk 0:00:32.7]} 54... Rg1 {[%clk 0:00:31.5]} 55. Kf4
{[%clk 0:00:33.4]} 55... Rf1+ {[%clk 0:00:32.4]} 56. Ke5 {[%clk 0:00:34.8]}
56... b5 {[%clk 0:00:33.5]} 57. Rc8 {[%clk 0:00:33.4]} 57... Bf3 {[%clk
0:00:33.9]} 58. Rg8+ {[%clk 0:00:25.1]} 58... Kh6 {[%clk 0:00:34.7]} 59. g5+
{[%clk 0:00:22.8]} 59... Kh5 {[%clk 0:00:35.6]} 60. Rh8+ {[%clk 0:00:23.7]}
60... Kg4 {[%clk 0:00:36.4]} 61. g6 {[%clk 0:00:24.6]} 61... Re1+ {[%clk
0:00:37.8]} 62. Kf6 {[%clk 0:00:25.7]} 62... Bd5 {[%clk 0:00:38.3]} 63. g7
{[%clk 0:00:25.7]} 63... b4 {[%clk 0:00:39.4]} 64. h5 {[%clk 0:00:21.3]} 64...
Rf1+ {[%clk 0:00:40.1]} 65. Ke5 {[%clk 0:00:21.6]} 65... b3 {[%clk 0:00:41.1]}
66. Kxd5 {[%clk 0:00:22.5]} 66... Rd1+ {[%clk 0:00:41.2]} 67. Kc4 {[%clk
0:00:23.2]} 67... b2 {[%clk 0:00:38.2]} 68. g8=Q+ {[%clk 0:00:24.5]} 68... Kh4
{[%clk 0:00:40.1]} 69. Qb8 {[%clk 0:00:11.4]} 69... b1=Q {[%clk 0:00:41.3]} 70.
Qh2+ {[%clk 0:00:13]} 70... Kg5 {[%clk 0:00:42]} 71. Rg8+ {[%clk 0:00:14.4]}
71... Kh6 {[%clk 0:00:42.5]} 72. Qf4+ {[%clk 0:00:15.6]} 72... Kh7 {[%clk
0:00:43.9]} 73. Qf7+ {[%clk 0:00:16.9]} 73... Kh6 {[%clk 0:00:45.4]} 74. Qg7+
{[%clk 0:00:18.8]} 74... Kxh5 {[%clk 0:00:46.5]} 75. Qg5# {[%clk 0:00:20.7]} 1-0

[Event "*** Titled Tuesday 3|2 Blitz"]
[Site "Chess.com"]
[Date "2016.09.06"]
[Round "1"]
[White "MattyDPerrine"]
[Black "SavelijTartakover"]
[Result "0-1"]
[WhiteElo "2206"]
[BlackElo "2521"]
[TimeControl "180+2"]
[EndTime "11:11:13 PDT"]
[Termination "SavelijTartakover won on time"]

1. d4 {[%clk 0:02:57.8]} 1... Nf6 {[%clk 0:02:37.5]} 2. c4 {[%clk 0:02:54.4]}
2... g6 {[%clk 0:02:37.6]} 3. Nf3 {[%clk 0:02:55.1]} 3... Bg7 {[%clk 0:02:38.1]}
4. g3 {[%clk 0:02:56.7]} 4... O-O {[%clk 0:02:38.4]} 5. Bg2 {[%clk 0:02:58.2]}
5... c5 {[%clk 0:02:39]} 6. O-O {[%clk 0:02:37.7]} 6... cxd4 {[%clk 0:02:38.5]}
7. Nxd4 {[%clk 0:02:39.6]} 7... Nc6 {[%clk 0:02:40.1]} 8. Nc3 {[%clk 0:02:40.3]}
8... Qa5 {[%clk 0:02:39.6]} 9. Nc2 {[%clk 0:02:23.8]} 9... d6 {[%clk 0:02:38.6]}
10. e4 {[%clk 0:02:09.9]} 10... Bg4 {[%clk 0:02:36.9]} 11. f3 {[%clk 0:01:43.9]}
11... Be6 {[%clk 0:02:36.2]} 12. Ne3 {[%clk 0:01:24.4]} 12... Rfc8 {[%clk
0:02:36.3]} 13. Bd2 {[%clk 0:01:21]} 13... Nd7 {[%clk 0:02:32.2]} 14. Rc1 {[%clk
0:01:11.8]} 14... Qd8 {[%clk 0:02:28]} 15. b3 {[%clk 0:01:07.7]} 15... Nc5
{[%clk 0:02:24.1]} 16. Ncd5 {[%clk 0:01:08.8]} 16... a5 {[%clk 0:02:16.3]} 17.
Bc3 {[%clk 0:01:04]} 17... Nb4 {[%clk 0:02:03.3]} 18. Bxg7 {[%clk 0:00:59.3]}
18... Kxg7 {[%clk 0:02:02.6]} 19. a3 {[%clk 0:00:57]} 19... Nxd5 {[%clk
0:01:59.7]} 20. exd5 {[%clk 0:00:52.6]} 20... Bd7 {[%clk 0:02:00.2]} 21. b4
{[%clk 0:00:51.6]} 21... axb4 {[%clk 0:02:00]} 22. axb4 {[%clk 0:00:53.5]} 22...
Na4 {[%clk 0:01:59.8]} 23. Qd4+ {[%clk 0:00:34.7]} 23... Kg8 {[%clk 0:01:59.8]}
24. c5 {[%clk 0:00:35.2]} 24... dxc5 {[%clk 0:01:52.9]} 25. bxc5 {[%clk
0:00:37.1]} 25... Qa5 {[%clk 0:01:52.5]} 26. c6 {[%clk 0:00:31.7]} 26... bxc6
{[%clk 0:01:50.1]} 27. dxc6 {[%clk 0:00:28]} 27... Bxc6 {[%clk 0:01:49.7]} 28.
Rxc6 {[%clk 0:00:21.1]} 28... Rxc6 {[%clk 0:01:44]} 29. f4 {[%clk 0:00:22.7]}
29... Rd6 {[%clk 0:01:32]} 30. Nd5 {[%clk 0:00:20.4]} 30... Rxd5 {[%clk
0:01:24.5]} 31. Qxd5 {[%clk 0:00:18.1]} 31... Qxd5 {[%clk 0:01:24.5]} 32. Bxd5
{[%clk 0:00:20]} 32... Rd8 {[%clk 0:01:25.3]} 33. Bc6 {[%clk 0:00:20]} 33... Nc3
{[%clk 0:01:22.7]} 34. Re1 {[%clk 0:00:15.3]} 34... Rd1 {[%clk 0:01:20]} 35.
Rxd1 {[%clk 0:00:15.9]} 35... Nxd1 {[%clk 0:01:21.1]} 36. Kg2 {[%clk 0:00:16.8]}
36... Kg7 {[%clk 0:01:21.5]} 37. Kf3 {[%clk 0:00:18.3]} 37... Kf6 {[%clk
0:01:21.7]} 38. g4 {[%clk 0:00:17.1]} 38... g5 {[%clk 0:01:20.3]} 39. fxg5+
{[%clk 0:00:17.4]} 39... Kxg5 {[%clk 0:01:20.7]} 40. Kg3 {[%clk 0:00:19.3]}
40... h6 {[%clk 0:01:16.2]} 41. h4+ {[%clk 0:00:20.1]} 41... Kf6 {[%clk
0:01:17.1]} 42. Kf4 {[%clk 0:00:15.2]} 42... e5+ {[%clk 0:01:17.3]} 43. Ke4
{[%clk 0:00:16.9]} 43... Nf2+ {[%clk 0:01:08.8]} 44. Kf3 {[%clk 0:00:17.7]}
44... Nd3 {[%clk 0:01:09.6]} 45. Ke4 {[%clk 0:00:17.5]} 45... Nc5+ {[%clk
0:01:10.2]} 46. Kd5 {[%clk 0:00:17.6]} 46... Ne6 {[%clk 0:01:05.1]} 47. Ke4
{[%clk 0:00:18.8]} 47... Nc5+ {[%clk 0:00:35.6]} 48. Kd5 {[%clk 0:00:18.3]}
48... Nd3 {[%clk 0:00:20.3]} 49. Ke4 {[%clk 0:00:11.6]} 49... Nf2+ {[%clk
0:00:20.8]} 50. Kf3 {[%clk 0:00:12.8]} 50... Nh3 {[%clk 0:00:21.8]} 51. Ke4
{[%clk 0:00:13.6]} 51... Nf4 {[%clk 0:00:14.1]} 52. g5+ {[%clk 0:00:07.3]} 52...
Ke6 {[%clk 0:00:11.8]} 53. Be8 {[%clk 0:00:05.5]} 53... h5 {[%clk 0:00:07.9]}
54. Bb5 {[%clk 0:00:04.2]} 54... Ng6 {[%clk 0:00:07.1]} 55. Bc4+ {[%clk
0:00:05.4]} 55... Ke7 {[%clk 0:00:06.9]} 56. Be2 {[%clk 0:00:05.2]} 56... Nxh4
{[%clk 0:00:07.7]} 57. Bxh5 {[%clk 0:00:05.9]} 57... Ke6 {[%clk 0:00:08.9]} 58.
Bg4+ {[%clk 0:00:07.3]} 58... Kd6 {[%clk 0:00:09.9]} 59. Bh5 {[%clk 0:00:08.9]}
59... Ng6 {[%clk 0:00:10.8]} 60. Bg4 {[%clk 0:00:09.2]} 60... Ke7 {[%clk
0:00:10.3]} 61. Bf5 {[%clk 0:00:09.9]} 61... Kd6 {[%clk 0:00:11.1]} 62. Bg4
{[%clk 0:00:11.3]} 62... Ne7 {[%clk 0:00:11.1]} 63. Bh5 {[%clk 0:00:12.4]} 63...
Ng6 {[%clk 0:00:11.8]} 64. Bg4 {[%clk 0:00:13.5]} 64... Nf8 {[%clk 0:00:12.5]}
65. Bf5 {[%clk 0:00:07.1]} 65... Ne6 {[%clk 0:00:10]} 66. g6 {[%clk 0:00:06.4]}
66... f6 {[%clk 0:00:11]} 67. Bg4 {[%clk 0:00:04.2]} 67... Ng7 {[%clk
0:00:11.5]} 68. Bh3 {[%clk 0:00:03.8]} 68... Ke7 {[%clk 0:00:12.4]} 69. Bg4
{[%clk 0:00:04.9]} 69... Kf8 {[%clk 0:00:13.2]} 70. Bh3 {[%clk 0:00:05.6]} 70...
Nh5 {[%clk 0:00:14.1]} 0-1